[Event "45th FIDE Chess Olympiad"]
[Site "Budapest"]
[Date "2024.09.15"]
[Round "5.50"]
[White "Sarana, Alexey"]
[Black "Fier, Alexandr"]
[Result "1-0"]
[ECO "D47"]
[WhiteElo "2713"]
[BlackElo "2551"]
[Annotator "Stoxkfish 16.1 - Chessbase"]
[PlyCount "97"]
[EventDate "2024.??.??"]
[WhiteTeam "Serbia"]
[BlackTeam "Brazil"]
[WhiteTeamCountry "SRB"]
[BlackTeamCountry "BRA"]
[TimeControl "40/5400+30:1800+30"]

1. d4 {[%eval 17,0] [%emt 0:00:04]} d5 {[%eval 23,0] [%emt 0:00:05]} 2. c4 {[%eval 19,0] [%emt 0:00:06]} c6 {[%eval 21,0] [%emt 0:00:04]} 3. Nf3 {[%eval 19,0] [%emt 0:00:23]} Nf6 {[%eval 27,0] [%emt 0:00:04]} 4. Nc3 {[%eval 16,0] [%emt 0:00:41]} e6 {[%eval 19,0] [%emt 0:00:05]} 5. e3 {[%eval 17,0] [%emt 0:00:24]} Nbd7 {[%eval 25,0] [%emt 0:00:04]} 6. Bd3 {[%eval 2,0] [%emt 0:00:12]} dxc4 {[%eval 19,0] [%emt 0:00:04]} 7. Bxc4 {[%eval 11,0] [%emt 0:00:03]} Bd6 $6 {[%eval 71,0] [%emt 0:00:07] Inaccuracy. b5 was best.} (7... b5 8. Bd3 b4 9. Ne4 Nxe4 10. Bxe4 Bb7 11. b3 Be7 12. O-O) 8. Qc2 {[%eval 21,0] [%emt 0:01:27]} O-O {[%eval 28,0] [%emt 0:00:06]} 9. O-O {[%eval 28,0] [%emt 0:03:53]} e5 {[%eval 32,0] [%emt 0:00:05]} 10. a3 {[%eval 16,0] [%emt 0:03:38]} Qe7 {[%eval 45,0] [%emt 0:00:38]} 11. h3 {[%eval 35,0] [%emt 0:00:18]} e4 {[%eval 31,0] [%emt 0:01:02]} 12. Ng5 {[%eval 37,0] [%emt 0:01:21]} Nb6 {[%eval 42,0] [%emt 0:00:04]} 13. Ba2 {[%eval 37,0] [%emt 0:00:07]} Bf5 {[%eval 37,0] [%emt 0:00:06]} 14. f3 {[%eval 43,0] [%emt 0:00:10]} Nbd5 {[%eval 48,0] [%emt 0:01:24]} 15. Ngxe4 {[%eval 39,0] [%emt 0:07:03]} Nxc3 {[%eval 35,0] [%emt 0:00:33]} 16. Nxf6+ {[%eval 29,0] [%emt 0:00:04]} Qxf6 {[%eval 37,0] [%emt 0:00:04]} 17. Qxc3 {[%eval 45,0] [%emt 0:00:06]} c5 {[%eval 46,0] [%emt 0:00:02]} 18. dxc5 {[%eval 34,0] [%emt 0:01:28]} Be5 {[%eval 37,0] [%emt 0:00:04]} 19. Qe1 {[%eval 42,0] [%emt 0:07:52]} Qg6 {[%eval 23,0] [%emt 0:08:52]} 20. f4 {[%eval 27,0] [%emt 0:02:24]} Be4 $146 {[%eval 42,0] [%emt 0:04:06]} ({RR} 20... Bf6 21. Bd5 Bxh3 22. Bf3 Rfe8 23. e4 Bd4+ 24. Be3 Rxe4 25. Bxe4 Qxe4 26. Rf2 Bg4 27. Bxd4 Bf3 28. Qxe4 Bxe4 29. Re2 Re8 30. Kf2 f6 31. c6 Bxc6 32. Rxe8+ {½-½ Cruz,C (2484)-Fier,A (2600) IV Mohammed VI Masters 2023 (6.11)}) 21. Qf2 {[%eval 46,0] [%emt 0:01:37]} Bf6 {[%eval 48,0] [%emt 0:02:05]} 22. f5 {[%eval 44,0] [%emt 0:04:57]} Qh6 {[%eval 84,0] [%emt 0:25:27]} 23. Bb1 {[%eval 85,0] [%emt 0:06:19]} Rfe8 {[%eval 83,0] [%emt 0:00:19]} 24. Bxe4 {[%eval 83,0] [%emt 0:00:54]} Rxe4 {[%eval 83,0] [%emt 0:00:05]} 25. Ra2 {[%eval 76,0] [%emt 0:00:24]} Rae8 {[%eval 102,0] [%emt 0:03:23]} 26. b4 {[%eval 104,0] [%emt 0:01:28]} Bg5 {[%eval 96,0] [%emt 0:00:02]} 27. Re2 $6 {[%eval 26,0] [%emt 0:08:07] Inaccuracy. b5 was best.} (27. b5) 27... Qc6 {[%eval 31,0] [%emt 0:02:55]} 28. Rd1 {[%eval 0,0] [%emt 0:07:53]} a5 {[%eval 8,0] [%emt 0:01:00]} 29. Qe1 {[%eval 0,0] [%emt 0:03:46]} axb4 {[%eval 0,0] [%emt 0:07:53]} 30. axb4 {[%eval 0,0] [%emt 0:00:02]} Qb5 {[%eval 6,0] [%emt 0:00:14]} 31. Bd2 {[%eval 0,0] [%emt 0:00:41]} h6 {[%eval 7,0] [%emt 0:00:47]} 32. Kh1 {[%eval 8,0] [%emt 0:07:00]} R8e5 {[%eval 23,0] [%emt 0:10:43]} 33. Bc3 {[%eval 19,0] [%emt 0:19:03]} Rxf5 {[%eval 29,0] [%emt 0:00:04]} 34. Qd2 {[%eval 1,0] [%emt 0:02:20]} Qc4 {[%eval 31,0] [%emt 0:07:16]} 35. Qc2 {[%eval 28,0] [%emt 0:03:07]} Qe6 {[%eval 36,0] [%emt 0:15:40]} 36. Bd4 {[%eval 37,0] [%emt 0:00:08]} Bh4 {[%eval 77,0] [%emt 0:06:55]} 37. b5 {[%eval 9,0] [%emt 0:02:33]} Bg3 {[%eval 67,0] [%emt 0:00:04]} 38. c6 {[%eval 67,0] [%emt 0:00:40]} bxc6 {[%eval 63,0] [%emt 0:00:03]} 39. Qxc6 {[%eval 64,0] [%emt 0:01:09]} Rd5 {[%eval 55,0] [%emt 0:04:38]} 40. Red2 {[%eval 56,0] [%emt 0:01:30]} Rd6 $4 {[%eval 249,0] [%emt 0:02:46] Blunder. Qxc6 was best.} (40... Qxc6) 41. Qa8+ {[%eval 253,0] [%emt 0:30:23]} Kh7 {[%eval 287,0] [%emt 0:30:07]} 42. Bxg7 {[%eval 266,0] [%emt 0:01:33]} Rh4 $4 {[%eval 588,0] [%emt 0:00:00] Blunder. Kxg7 was best.} (42... Kxg7 43. Rxd6 Bxd6 44. Rxd6 Qe5 45. Rd5 Qc3 46. Rg5+ hxg5 47. Qxe4 Qc1+ 48. Kh2) 43. Qh8+ {[%eval 576,0] [%emt 0:00:00]} Kg6 {[%eval 568,0] [%emt 0:00:00]} 44. Rxd6 {[%eval 533,0] [%emt 0:00:00]} Bxd6 {[%eval 506,0] [%emt 0:00:00]} 45. Rxd6 {[%eval 599,0] [%emt 0:00:00]} Qxd6 {[%eval 578,0] [%emt 0:00:00]} 46. Bd4 {[%eval 506,0] [%emt 0:00:00]} Kf5 {[%eval 623,0] [%emt 0:00:00]} 47. b6 {[%eval 642,0] [%emt 0:00:00]} Rxh3+ $6 {[%eval 919,0] [%emt 0:00:00] Inaccuracy. Rxd4 was best.} (47... Rxd4 48. Qxd4) 48. gxh3 {[%eval 905,0] [%emt 0:00:00]} Qc6+ {[%eval 843,0] [%emt 0:00:00]} 49. Kh2 {[%eval 787,0] [%emt 0:00:00]} 1-0